[Event "*** SCC Grand Prix: Titled Tuesday Blitz"]
[Site "Chess.com"]
[Date "2020.09.29"]
[Round "2"]
[White "SharapovEvgeny"]
[Black "almo64"]
[Result "0-1"]
[WhiteElo "2473"]
[BlackElo "2727"]
[TimeControl "180+1"]
[EndTime "10:17:26 PDT"]
[Termination "almo64 won by resignation"]

1. c4 {[%clk 0:02:59.7]} 1... e6 {[%clk 0:02:57.8]} 2. Nc3 {[%clk 0:02:59.1]}
2... d5 {[%clk 0:02:58.3]} 3. cxd5 {[%clk 0:02:58.3]} 3... exd5 {[%clk
0:02:58.2]} 4. d4 {[%clk 0:02:58.4]} 4... c6 {[%clk 0:02:51]} 5. Nf3 {[%clk
0:02:57.7]} 5... Bf5 {[%clk 0:02:50.5]} 6. Qb3 {[%clk 0:02:56.1]} 6... Qb6
{[%clk 0:02:50.2]} 7. Qxb6 {[%clk 0:02:55.2]} 7... axb6 {[%clk 0:02:49.9]} 8.
Bd2 {[%clk 0:02:48.5]} 8... Nf6 {[%clk 0:02:49.1]} 9. a3 {[%clk 0:02:46.7]} 9...
Nbd7 {[%clk 0:02:48.4]} 10. e3 {[%clk 0:02:43.2]} 10... h6 {[%clk 0:02:44.3]}
11. Be2 {[%clk 0:02:42.1]} 11... b5 {[%clk 0:02:44.3]} 12. O-O {[%clk
0:02:41.6]} 12... Bd6 {[%clk 0:02:44.4]} 13. Na2 {[%clk 0:02:39.8]} 13... Nb6
{[%clk 0:02:38.2]} 14. Bb4 {[%clk 0:02:38.8]} 14... Bc7 {[%clk 0:02:37.7]} 15.
Nc3 {[%clk 0:02:31]} 15... Nc4 {[%clk 0:02:33.6]} 16. Bxc4 {[%clk 0:02:27.9]}
16... bxc4 {[%clk 0:02:33.2]} 17. Rfe1 {[%clk 0:02:20.6]} 17... O-O-O {[%clk
0:01:53.1]} 18. Ne5 {[%clk 0:02:19.1]} 18... Rhe8 {[%clk 0:01:16]} 19. Nxf7
{[%clk 0:02:12.8]} 19... Rd7 {[%clk 0:01:16.3]} 20. Ne5 {[%clk 0:02:09.4]} 20...
Bxe5 {[%clk 0:01:16.6]} 21. dxe5 {[%clk 0:02:09]} 21... Rxe5 {[%clk 0:01:17.5]}
22. Na4 {[%clk 0:02:05.4]} 22... Rd8 {[%clk 0:01:10.6]} 23. Bc3 {[%clk
0:01:56.9]} 23... Re7 {[%clk 0:01:03.7]} 24. Nb6+ {[%clk 0:01:50.8]} 24... Kb8
{[%clk 0:00:59.3]} 25. a4 {[%clk 0:01:43.9]} 25... Ne4 {[%clk 0:00:58.7]} 26. a5
{[%clk 0:01:39.2]} 26... Nxc3 {[%clk 0:00:49.4]} 27. bxc3 {[%clk 0:01:38.5]}
27... Bc2 {[%clk 0:00:47.1]} 28. Re2 {[%clk 0:01:31.1]} 28... Bb3 {[%clk
0:00:46.5]} 29. Rd2 {[%clk 0:01:28.3]} 29... Ka7 {[%clk 0:00:44.9]} 30. Rd4
{[%clk 0:01:23.4]} 30... Ka6 {[%clk 0:00:39.5]} 31. h4 {[%clk 0:01:07.1]} 31...
Re4 {[%clk 0:00:34.7]} 32. Rxe4 {[%clk 0:00:48]} 32... dxe4 {[%clk 0:00:34.5]}
33. Na4 {[%clk 0:00:48.1]} 33... Kb5 {[%clk 0:00:33.4]} 34. Nb6 {[%clk
0:00:38.7]} 34... Rd3 {[%clk 0:00:30.7]} 35. Na8 {[%clk 0:00:21.8]} 35... Rxc3
{[%clk 0:00:27.5]} 36. Nc7+ {[%clk 0:00:21]} 36... Kc5 {[%clk 0:00:27.8]} 37.
Ne6+ {[%clk 0:00:20.5]} 37... Kb4 {[%clk 0:00:26.1]} 38. Nxg7 {[%clk 0:00:18.7]}
38... Rd3 {[%clk 0:00:26.6]} 39. Nf5 {[%clk 0:00:16]} 39... c3 {[%clk
0:00:26.8]} 40. Nd4 {[%clk 0:00:13.4]} 40... c2 {[%clk 0:00:26.7]} 41. Nxc2+
{[%clk 0:00:12.4]} 41... Bxc2 {[%clk 0:00:26.9]} 42. a6 {[%clk 0:00:11.2]} 42...
bxa6 {[%clk 0:00:27.3]} 43. Rxa6 {[%clk 0:00:10.9]} 43... Ba4 {[%clk 0:00:27.5]}
44. g4 {[%clk 0:00:09.6]} 44... Bb5 {[%clk 0:00:24.3]} 45. Ra7 {[%clk 0:00:08]}
45... c5 {[%clk 0:00:24.4]} 46. Rh7 {[%clk 0:00:07]} 46... Rd6 {[%clk
0:00:24.1]} 47. g5 {[%clk 0:00:06.2]} 47... hxg5 {[%clk 0:00:24.3]} 48. hxg5
{[%clk 0:00:06.4]} 48... Rg6 {[%clk 0:00:24.5]} 0-1

[Event "*** SCC Grand Prix: Titled Tuesday Blitz"]
[Site "Chess.com"]
[Date "2020.09.29"]
[Round "2"]
[White "bratkoo"]
[Black "Radzio1987"]
[Result "1/2-1/2"]
[WhiteElo "2547"]
[BlackElo "2841"]
[TimeControl "180+1"]
[EndTime "10:17:27 PDT"]
[Termination "Game drawn by repetition"]

1. e4 {[%clk 0:03:00.9]} 1... c6 {[%clk 0:02:59.2]} 2. d4 {[%clk 0:02:56.3]}
2... d5 {[%clk 0:03:00.1]} 3. e5 {[%clk 0:02:55.2]} 3... Bf5 {[%clk 0:02:59.5]}
4. Nf3 {[%clk 0:02:56.1]} 4... e6 {[%clk 0:02:59.1]} 5. Be2 {[%clk 0:02:56.7]}
5... Nd7 {[%clk 0:02:59.1]} 6. O-O {[%clk 0:02:57.3]} 6... Ne7 {[%clk
0:02:59.6]} 7. Nbd2 {[%clk 0:02:56.3]} 7... Nc8 {[%clk 0:02:57]} 8. c4 {[%clk
0:02:56.2]} 8... Be7 {[%clk 0:02:51.9]} 9. a4 {[%clk 0:02:55.9]} 9... a5 {[%clk
0:02:43.2]} 10. Nb3 {[%clk 0:02:55.9]} 10... dxc4 {[%clk 0:02:41.9]} 11. Bxc4
{[%clk 0:02:55.4]} 11... Ncb6 {[%clk 0:02:41.7]} 12. Bd3 {[%clk 0:02:55.9]}
12... Bxd3 {[%clk 0:02:40.4]} 13. Qxd3 {[%clk 0:02:56.5]} 13... Nd5 {[%clk
0:02:40.6]} 14. Bd2 {[%clk 0:02:56.5]} 14... h6 {[%clk 0:02:39.7]} 15. Rfc1
{[%clk 0:02:51.8]} 15... Bb4 {[%clk 0:02:38.8]} 16. h3 {[%clk 0:02:46.2]} 16...
Qb6 {[%clk 0:02:36.1]} 17. Bxb4 {[%clk 0:02:43]} 17... Nxb4 {[%clk 0:02:36]} 18.
Qe2 {[%clk 0:02:40.3]} 18... O-O {[%clk 0:02:34.7]} 19. Nfd2 {[%clk 0:02:40.3]}
19... Nd5 {[%clk 0:02:29.2]} 20. Ra3 {[%clk 0:02:32.5]} 20... Qb4 {[%clk
0:02:15.6]} 21. Nc4 {[%clk 0:02:24.5]} 21... N7b6 {[%clk 0:01:56.9]} 22. Nc5
{[%clk 0:02:18.2]} 22... Nxc4 {[%clk 0:01:46.7]} 23. Rxc4 {[%clk 0:02:17.9]}
23... Qb6 {[%clk 0:01:46]} 24. Nd7 {[%clk 0:02:16.6]} 24... Qa6 {[%clk
0:01:45.5]} 25. Nxf8 {[%clk 0:02:15.9]} 25... Rxf8 {[%clk 0:01:46.4]} 26. Qc2
{[%clk 0:02:14.9]} 26... Nb4 {[%clk 0:01:45]} 27. Qc1 {[%clk 0:02:14]} 27... Rd8
{[%clk 0:01:44.2]} 28. Rg3 {[%clk 0:02:14.1]} 28... Kf8 {[%clk 0:01:44]} 29. b3
{[%clk 0:02:12]} 29... Qb6 {[%clk 0:01:43.7]} 30. Qf4 {[%clk 0:02:10.1]} 30...
Nd5 {[%clk 0:01:42.8]} 31. Qg4 {[%clk 0:02:10.6]} 31... g6 {[%clk 0:01:39.1]}
32. Qh4 {[%clk 0:02:11]} 32... h5 {[%clk 0:01:38.9]} 33. Rc5 {[%clk 0:02:09.6]}
33... Ke8 {[%clk 0:01:35.2]} 34. Rf3 {[%clk 0:02:09.7]} 34... Qb4 {[%clk
0:01:34.8]} 35. Qe4 {[%clk 0:02:03.5]} 35... Ne7 {[%clk 0:01:32.5]} 36. Rc4
{[%clk 0:02:01.9]} 36... Qd2 {[%clk 0:01:29.9]} 37. Qf4 {[%clk 0:01:59.1]} 37...
Qd1+ {[%clk 0:01:17.5]} 38. Kh2 {[%clk 0:01:58.8]} 38... Nf5 {[%clk 0:01:18]}
39. g4 {[%clk 0:01:57.1]} 39... hxg4 {[%clk 0:01:16.2]} 40. hxg4 {[%clk
0:01:57.2]} 40... g5 {[%clk 0:01:07.1]} 41. Qe4 {[%clk 0:01:25.6]} 41... Nh4
{[%clk 0:00:42.9]} 42. Rf6 {[%clk 0:01:22.9]} 42... Ke7 {[%clk 0:00:36.4]} 43.
Qh7 {[%clk 0:01:07.5]} 43... Rf8 {[%clk 0:00:35.9]} 44. Qg7 {[%clk 0:01:01.3]}
44... Qf1 {[%clk 0:00:31.5]} 45. Rxe6+ {[%clk 0:00:50.7]} 45... Kxe6 {[%clk
0:00:29.7]} 46. Qf6+ {[%clk 0:00:51]} 46... Kd7 {[%clk 0:00:28.7]} 47. Qd6+
{[%clk 0:00:51.1]} 47... Kc8 {[%clk 0:00:20.6]} 48. Qxf8+ {[%clk 0:00:51.1]}
48... Kc7 {[%clk 0:00:20.9]} 49. Qe7+ {[%clk 0:00:24.2]} 49... Kb6 {[%clk
0:00:20.8]} 50. Qd8+ {[%clk 0:00:24]} 50... Ka6 {[%clk 0:00:20.6]} 51. Qa8+
{[%clk 0:00:19.8]} 51... Kb6 {[%clk 0:00:20.8]} 52. Qd8+ {[%clk 0:00:20.4]}
52... Ka6 {[%clk 0:00:21]} 53. Qa8+ {[%clk 0:00:20.5]} 53... Kb6 {[%clk
0:00:21.2]} 54. Qd8+ {[%clk 0:00:20.9]} 1/2-1/2

[Event "*** SCC Grand Prix: Titled Tuesday Blitz"]
[Site "Chess.com"]
[Date "2020.09.29"]
[Round "2"]
[White "Barys1974"]
[Black "denispopov"]
[Result "1-0"]
[WhiteElo "2621"]
[BlackElo "1959"]
[TimeControl "180+1"]
[EndTime "10:17:29 PDT"]
[Termination "Barys1974 won on time"]

1. Nf3 {[%clk 0:03:00.9]} 1... Nf6 {[%clk 0:02:58.1]} 2. c4 {[%clk 0:02:59.4]}
2... g6 {[%clk 0:02:57.8]} 3. g3 {[%clk 0:02:59.2]} 3... Bg7 {[%clk 0:02:58]} 4.
Bg2 {[%clk 0:02:59.7]} 4... O-O {[%clk 0:02:58.6]} 5. O-O {[%clk 0:03:00.2]}
5... c6 {[%clk 0:02:57.8]} 6. b3 {[%clk 0:02:58.8]} 6... a5 {[%clk 0:02:54.8]}
7. a3 {[%clk 0:02:55]} 7... d5 {[%clk 0:02:52.9]} 8. Bb2 {[%clk 0:02:54.9]} 8...
a4 {[%clk 0:02:51.8]} 9. cxd5 {[%clk 0:02:54.9]} 9... Nxd5 {[%clk 0:02:47.6]}
10. Bxg7 {[%clk 0:02:52.6]} 10... Kxg7 {[%clk 0:02:48.5]} 11. b4 {[%clk
0:02:49.8]} 11... f6 {[%clk 0:02:41.6]} 12. Qc2 {[%clk 0:02:42.7]} 12... e5
{[%clk 0:02:40]} 13. Rd1 {[%clk 0:02:39.8]} 13... Qe7 {[%clk 0:02:38.4]} 14. e4
{[%clk 0:02:33.9]} 14... Nc7 {[%clk 0:02:36.7]} 15. d4 {[%clk 0:02:32.6]} 15...
Bg4 {[%clk 0:02:23.6]} 16. Nbd2 {[%clk 0:01:59.6]} 16... exd4 {[%clk 0:02:19.8]}
17. h3 {[%clk 0:01:59.3]} 17... Bxf3 {[%clk 0:02:18.6]} 18. Nxf3 {[%clk
0:01:59.4]} 18... Ne6 {[%clk 0:02:17.6]} 19. Nxd4 {[%clk 0:01:58.5]} 19... Nd7
{[%clk 0:02:04.4]} 20. f4 {[%clk 0:01:48.4]} 20... Rfd8 {[%clk 0:02:00.1]} 21.
Nf3 {[%clk 0:01:43.5]} 21... Nb6 {[%clk 0:01:53]} 22. e5 {[%clk 0:01:33.9]}
22... f5 {[%clk 0:01:41.5]} 23. h4 {[%clk 0:01:32.6]} 23... Rxd1+ {[%clk
0:01:34.5]} 24. Rxd1 {[%clk 0:01:32]} 24... Rd8 {[%clk 0:01:35.3]} 25. Ng5
{[%clk 0:01:08.6]} 25... Nxg5 {[%clk 0:01:27.3]} 26. hxg5 {[%clk 0:01:07.9]}
26... h6 {[%clk 0:00:56.8]} 27. gxh6+ {[%clk 0:01:05.4]} 27... Kxh6 {[%clk
0:00:57.7]} 28. Rd3 {[%clk 0:00:57.8]} 28... Rxd3 {[%clk 0:00:48.1]} 29. Qxd3
{[%clk 0:00:57.7]} 29... Kg7 {[%clk 0:00:48.1]} 30. Kf2 {[%clk 0:00:54.8]} 30...
Qe6 {[%clk 0:00:37.1]} 31. Bf3 {[%clk 0:00:43.3]} 31... Qa2+ {[%clk 0:00:35.6]}
32. Be2 {[%clk 0:00:41]} 32... Nd5 {[%clk 0:00:34.9]} 33. Kg2 {[%clk 0:00:19.7]}
33... Nc3 {[%clk 0:00:26.3]} 34. Qxc3 {[%clk 0:00:19.7]} 34... Qxe2+ {[%clk
0:00:26.4]} 35. Kg1 {[%clk 0:00:20.2]} 35... Qd1+ {[%clk 0:00:24.9]} 36. Kf2
{[%clk 0:00:20.4]} 36... Qb3 {[%clk 0:00:17.9]} 37. Qe3 {[%clk 0:00:20.5]} 37...
Qa2+ {[%clk 0:00:15.8]} 38. Kf3 {[%clk 0:00:18.5]} 38... Qd5+ {[%clk 0:00:15.6]}
39. Kf2 {[%clk 0:00:18.1]} 39... Qa2+ {[%clk 0:00:16.2]} 40. Kg1 {[%clk
0:00:17.9]} 40... Kf7 {[%clk 0:00:15]} 41. Qb6 {[%clk 0:00:16]} 41... Qa1+
{[%clk 0:00:11.8]} 42. Kg2 {[%clk 0:00:15.7]} 1-0

[Event "*** SCC Grand Prix: Titled Tuesday Blitz"]
[Site "Chess.com"]
[Date "2020.09.29"]
[Round "2"]
[White "Jabberwockiez"]
[Black "chigorin28"]
[Result "0-1"]
[WhiteElo "2206"]
[BlackElo "2426"]
[TimeControl "180+1"]
[EndTime "10:17:30 PDT"]
[Termination "chigorin28 won by checkmate"]

1. e4 {[%clk 0:03:00.9]} 1... c5 {[%clk 0:02:56.5]} 2. Nc3 {[%clk 0:02:59.6]}
2... Nc6 {[%clk 0:02:54.4]} 3. Nf3 {[%clk 0:02:59.5]} 3... g6 {[%clk 0:02:54.8]}
4. d4 {[%clk 0:02:59.8]} 4... cxd4 {[%clk 0:02:53.1]} 5. Nxd4 {[%clk 0:03:00.7]}
5... Bg7 {[%clk 0:02:53.3]} 6. Be3 {[%clk 0:03:01.3]} 6... d6 {[%clk 0:02:40.7]}
7. Bc4 {[%clk 0:02:58.4]} 7... Nf6 {[%clk 0:02:39.6]} 8. f3 {[%clk 0:02:58.2]}
8... O-O {[%clk 0:02:39.4]} 9. Qd2 {[%clk 0:02:57.9]} 9... a6 {[%clk 0:02:39.3]}
10. O-O-O {[%clk 0:02:57.1]} 10... Nxd4 {[%clk 0:02:21.1]} 11. Bxd4 {[%clk
0:02:58]} 11... b5 {[%clk 0:02:03.6]} 12. Bb3 {[%clk 0:02:57.8]} 12... Be6
{[%clk 0:01:50.1]} 13. Nd5 {[%clk 0:02:55.7]} 13... Bxd5 {[%clk 0:01:42.8]} 14.
exd5 {[%clk 0:02:54.7]} 14... a5 {[%clk 0:01:40.3]} 15. a3 {[%clk 0:02:51.5]}
15... b4 {[%clk 0:01:37.4]} 16. a4 {[%clk 0:02:31.1]} 16... Rc8 {[%clk
0:01:34.2]} 17. Kb1 {[%clk 0:02:28.1]} 17... Nd7 {[%clk 0:01:32.5]} 18. Bxg7
{[%clk 0:02:26.8]} 18... Kxg7 {[%clk 0:01:33.4]} 19. h4 {[%clk 0:02:27.2]} 19...
h5 {[%clk 0:01:28.3]} 20. g4 {[%clk 0:02:27]} 20... Rh8 {[%clk 0:01:28.6]} 21.
Rdg1 {[%clk 0:02:13.5]} 21... Ne5 {[%clk 0:01:22.8]} 22. Qd4 {[%clk 0:02:08.7]}
22... f6 {[%clk 0:01:04.4]} 23. Rh3 {[%clk 0:02:05.3]} 23... hxg4 {[%clk
0:00:57.2]} 24. fxg4 {[%clk 0:02:03.9]} 24... Qc7 {[%clk 0:00:56.9]} 25. g5
{[%clk 0:01:44.3]} 25... Qc5 {[%clk 0:00:46.2]} 26. gxf6+ {[%clk 0:01:43.7]}
26... exf6 {[%clk 0:00:47.1]} 27. Qd1 {[%clk 0:01:30.8]} 27... Rh6 {[%clk
0:00:39]} 28. Rf1 {[%clk 0:01:20.7]} 28... Rch8 {[%clk 0:00:37.2]} 29. Rf4
{[%clk 0:01:17.2]} 29... Qc8 {[%clk 0:00:34.1]} 30. Qf1 {[%clk 0:01:12.8]} 30...
Qd8 {[%clk 0:00:30.4]} 31. Qa6 {[%clk 0:01:01.7]} 31... g5 {[%clk 0:00:25.3]}
32. Qa7+ {[%clk 0:00:56.4]} 32... Qd7 {[%clk 0:00:23.4]} 33. Qxd7+ {[%clk
0:00:49.6]} 33... Nxd7 {[%clk 0:00:24.3]} 34. Rc4 {[%clk 0:00:44.9]} 34... Rxh4
{[%clk 0:00:22.6]} 35. Rhxh4 {[%clk 0:00:42.9]} 35... gxh4 {[%clk 0:00:22.9]}
36. Rc7 {[%clk 0:00:42.9]} 36... h3 {[%clk 0:00:20.1]} 37. Rxd7+ {[%clk
0:00:42.5]} 37... Kg6 {[%clk 0:00:20.5]} 38. c4 {[%clk 0:00:30]} 38... h2 {[%clk
0:00:20.4]} 39. Bc2+ {[%clk 0:00:30.1]} 39... f5 {[%clk 0:00:20.9]} 40. Rxd6+
{[%clk 0:00:24.9]} 40... Kg5 {[%clk 0:00:21.2]} 41. Ka2 {[%clk 0:00:16.1]} 41...
h1=Q {[%clk 0:00:20.8]} 42. Rd7 {[%clk 0:00:15.2]} 42... Qc1 {[%clk 0:00:19]}
43. Bd3 {[%clk 0:00:07]} 43... Rh2 {[%clk 0:00:18.9]} 44. Rg7+ {[%clk
0:00:04.5]} 44... Kf6 {[%clk 0:00:18.9]} 45. Rg2 {[%clk 0:00:04.7]} 45... Rxg2
{[%clk 0:00:18.7]} 46. Bc2 {[%clk 0:00:03.1]} 46... Qxc2 {[%clk 0:00:17.3]} 47.
d6 {[%clk 0:00:04]} 47... Qxb2# {[%clk 0:00:17.1]} 0-1

[Event "*** SCC Grand Prix: Titled Tuesday Blitz"]
[Site "Chess.com"]
[Date "2020.09.29"]
[Round "2"]
[White "SergeyShtyka"]
[Black "BikingBrian"]
[Result "1-0"]
[WhiteElo "2434"]
[BlackElo "2201"]
[TimeControl "180+1"]
[EndTime "10:17:32 PDT"]
[Termination "SergeyShtyka won by resignation"]

1. e4 {[%clk 0:03:00.9]} 1... c5 {[%clk 0:02:59.5]} 2. Nf3 {[%clk 0:02:57.3]}
2... g6 {[%clk 0:02:59.8]} 3. c3 {[%clk 0:02:55.7]} 3... Bg7 {[%clk 0:02:59.3]}
4. Bd3 {[%clk 0:02:55.7]} 4... e6 {[%clk 0:02:51.1]} 5. Bc2 {[%clk 0:02:55.6]}
5... Ne7 {[%clk 0:02:50.9]} 6. O-O {[%clk 0:02:55.4]} 6... O-O {[%clk
0:02:50.2]} 7. d3 {[%clk 0:02:52.8]} 7... d5 {[%clk 0:02:50]} 8. Bg5 {[%clk
0:02:50.3]} 8... Nbc6 {[%clk 0:02:49.9]} 9. Nbd2 {[%clk 0:02:47.3]} 9... Qc7
{[%clk 0:02:43.3]} 10. Nb3 {[%clk 0:02:41.8]} 10... b6 {[%clk 0:02:41.5]} 11.
Qd2 {[%clk 0:02:42]} 11... Ba6 {[%clk 0:02:39.5]} 12. Rfe1 {[%clk 0:02:38]}
12... Rad8 {[%clk 0:02:34.1]} 13. exd5 {[%clk 0:02:35]} 13... Nxd5 {[%clk
0:02:33.5]} 14. Bxd8 {[%clk 0:02:33.5]} 14... Rxd8 {[%clk 0:02:33.7]} 15. Rad1
{[%clk 0:02:18.1]} 15... Nf4 {[%clk 0:02:30.9]} 16. Nc1 {[%clk 0:02:13.9]} 16...
e5 {[%clk 0:02:25.6]} 17. Ne2 {[%clk 0:02:10.8]} 17... Nxd3 {[%clk 0:02:20.8]}
18. Bxd3 {[%clk 0:02:06.4]} 18... Rxd3 {[%clk 0:02:14.6]} 19. Qc2 {[%clk
0:01:55.3]} 19... e4 {[%clk 0:02:05.8]} 20. Ng5 {[%clk 0:01:49.1]} 20... Qe7
{[%clk 0:01:59]} 21. Nh3 {[%clk 0:01:42.4]} 21... f5 {[%clk 0:01:45.1]} 22. Nef4
{[%clk 0:01:38.2]} 22... Rxd1 {[%clk 0:01:39.8]} 23. Qxd1 {[%clk 0:01:34.5]}
23... Ne5 {[%clk 0:01:36.6]} 24. Qd5+ {[%clk 0:01:25]} 24... Kh8 {[%clk
0:01:24.5]} 25. Qa8+ {[%clk 0:01:18.5]} 25... Bf8 {[%clk 0:01:22.7]} 26. Ne6
{[%clk 0:01:15.6]} 26... Kg8 {[%clk 0:01:15.3]} 27. Nxf8 {[%clk 0:01:14.2]}
27... Qxf8 {[%clk 0:01:16.2]} 28. Qxa7 {[%clk 0:01:13.4]} 28... Nd3 {[%clk
0:00:57]} 29. Ng5 {[%clk 0:00:55]} 29... Qf6 {[%clk 0:00:54.8]} 30. Qxh7+ {[%clk
0:00:42.8]} 30... Kf8 {[%clk 0:00:54.4]} 31. Qh6+ {[%clk 0:00:43.2]} 31... Ke7
{[%clk 0:00:50]} 32. Rd1 {[%clk 0:00:39.7]} 32... Bc4 {[%clk 0:00:48.5]} 33. b3
{[%clk 0:00:39]} 33... Bd5 {[%clk 0:00:43.7]} 34. c4 {[%clk 0:00:38.3]} 34...
Bc6 {[%clk 0:00:34.6]} 35. Qh7+ {[%clk 0:00:37]} 35... Kd6 {[%clk 0:00:31.3]}
36. h4 {[%clk 0:00:35.2]} 36... Qb2 {[%clk 0:00:26.8]} 37. Qxg6+ {[%clk
0:00:31.2]} 37... Kc7 {[%clk 0:00:27]} 38. Qxf5 {[%clk 0:00:30.9]} 38... Qxa2
{[%clk 0:00:23.8]} 39. Rxd3 {[%clk 0:00:24.7]} 39... exd3 {[%clk 0:00:23.3]} 40.
Qxd3 {[%clk 0:00:24.8]} 40... Qa1+ {[%clk 0:00:22.8]} 41. Kh2 {[%clk 0:00:24.9]}
41... Qe5+ {[%clk 0:00:23.5]} 42. Qg3 {[%clk 0:00:23.5]} 42... Qxg3+ {[%clk
0:00:23.6]} 43. Kxg3 {[%clk 0:00:23.6]} 43... Kd6 {[%clk 0:00:24.5]} 44. Kf4
{[%clk 0:00:23.9]} 44... Ke7 {[%clk 0:00:24.6]} 45. Ke5 {[%clk 0:00:23.7]} 45...
Bd7 {[%clk 0:00:23.3]} 46. h5 {[%clk 0:00:23.5]} 46... Kf8 {[%clk 0:00:23.7]}
47. h6 {[%clk 0:00:23.8]} 47... Kg8 {[%clk 0:00:23.6]} 48. Kf6 {[%clk
0:00:24.1]} 48... b5 {[%clk 0:00:22.4]} 49. cxb5 {[%clk 0:00:23.5]} 49... Bxb5
{[%clk 0:00:22.6]} 50. h7+ {[%clk 0:00:24.1]} 50... Kh8 {[%clk 0:00:22.3]} 51.
Kg6 {[%clk 0:00:24.5]} 51... Bd3+ {[%clk 0:00:20.6]} 52. Kh6 {[%clk 0:00:24.5]}
52... Bxh7 {[%clk 0:00:17.8]} 53. Nxh7 {[%clk 0:00:23.6]} 53... Kg8 {[%clk
0:00:18.3]} 54. Kg6 {[%clk 0:00:24]} 54... Kh8 {[%clk 0:00:17.3]} 55. f4 {[%clk
0:00:24.4]} 55... Kg8 {[%clk 0:00:17.7]} 56. f5 {[%clk 0:00:24.8]} 56... Kh8
{[%clk 0:00:15.7]} 57. f6 {[%clk 0:00:25.3]} 1-0

[Event "*** SCC Grand Prix: Titled Tuesday Blitz"]
[Site "Chess.com"]
[Date "2020.09.29"]
[Round "2"]
[White "Oligan22"]
[Black "PetrolulSah"]
[Result "1-0"]
[WhiteElo "2409"]
[BlackElo "2178"]
[TimeControl "180+1"]
[EndTime "10:17:37 PDT"]
[Termination "Oligan22 won on time"]

1. e4 {[%clk 0:02:58.6]} 1... e5 {[%clk 0:02:38.8]} 2. Nc3 {[%clk 0:02:53]} 2...
Nf6 {[%clk 0:02:38]} 3. f4 {[%clk 0:02:48.2]} 3... d5 {[%clk 0:02:33.6]} 4. exd5
{[%clk 0:02:36.8]} 4... e4 {[%clk 0:02:33.4]} 5. d3 {[%clk 0:02:34.2]} 5... Bb4
{[%clk 0:02:30.5]} 6. dxe4 {[%clk 0:02:22.9]} 6... Nxe4 {[%clk 0:02:29.8]} 7.
Qd4 {[%clk 0:02:18.7]} 7... Qe7 {[%clk 0:02:10.8]} 8. Be3 {[%clk 0:02:08.8]}
8... O-O {[%clk 0:01:51]} 9. Ne2 {[%clk 0:02:01.1]} 9... Re8 {[%clk 0:01:45.3]}
10. Qe5 {[%clk 0:01:34.2]} 10... Nxc3 {[%clk 0:01:34.3]} 11. bxc3 {[%clk
0:01:28.2]} 11... Qh4+ {[%clk 0:01:27.9]} 12. g3 {[%clk 0:01:26.3]} 12... Rxe5
{[%clk 0:01:26]} 13. gxh4 {[%clk 0:01:24]} 13... Bxc3+ {[%clk 0:01:24.5]} 14.
Nxc3 {[%clk 0:01:21.1]} 14... Rxe3+ {[%clk 0:01:24.4]} 15. Kd2 {[%clk
0:01:21.7]} 15... Re7 {[%clk 0:01:23.6]} 16. Bd3 {[%clk 0:01:12.1]} 16... Nd7
{[%clk 0:01:22.1]} 17. Rae1 {[%clk 0:01:09.7]} 17... Rxe1 {[%clk 0:01:16.1]} 18.
Rxe1 {[%clk 0:01:10.6]} 18... Kf8 {[%clk 0:01:15.3]} 19. Nb5 {[%clk 0:01:10]}
19... Nf6 {[%clk 0:01:12.4]} 20. Nxc7 {[%clk 0:01:08.6]} 20... Rb8 {[%clk
0:01:12.8]} 21. c4 {[%clk 0:01:06.7]} 21... Bd7 {[%clk 0:01:10.7]} 22. c5 {[%clk
0:01:02.2]} 22... Rc8 {[%clk 0:01:07.3]} 23. d6 {[%clk 0:01:02.3]} 23... b6
{[%clk 0:01:07.4]} 24. cxb6 {[%clk 0:00:56.6]} 24... axb6 {[%clk 0:01:07.2]} 25.
Rb1 {[%clk 0:00:57.5]} 25... b5 {[%clk 0:01:02.6]} 26. Ke3 {[%clk 0:00:46.7]}
26... Ne8 {[%clk 0:01:00.5]} 27. Nxe8 {[%clk 0:00:45.7]} 27... Rxe8+ {[%clk
0:00:56.2]} 28. Kd4 {[%clk 0:00:45.4]} 28... Ra8 {[%clk 0:00:56]} 29. Bxb5
{[%clk 0:00:40.5]} 29... Ke8 {[%clk 0:00:42]} 30. a4 {[%clk 0:00:36.1]} 30...
Bxb5 {[%clk 0:00:38.7]} 31. axb5 {[%clk 0:00:37]} 31... Kd7 {[%clk 0:00:38.9]}
32. Kc5 {[%clk 0:00:33.6]} 32... Rc8+ {[%clk 0:00:38]} 33. Kd5 {[%clk
0:00:33.6]} 33... Ra8 {[%clk 0:00:35]} 34. Re1 {[%clk 0:00:32.2]} 34... Ra1
{[%clk 0:00:34.1]} 35. Re7+ {[%clk 0:00:32.1]} 35... Kd8 {[%clk 0:00:34.5]} 36.
Rxf7 {[%clk 0:00:32.1]} 36... Rd1+ {[%clk 0:00:33.3]} 37. Kc6 {[%clk 0:00:32.3]}
37... Rc1+ {[%clk 0:00:33.5]} 38. Kb6 {[%clk 0:00:32.1]} 38... Rd1 {[%clk
0:00:33.3]} 39. d7 {[%clk 0:00:30.4]} 39... h5 {[%clk 0:00:31.2]} 40. Rxg7
{[%clk 0:00:30.4]} 40... Rd4 {[%clk 0:00:29.5]} 41. f5 {[%clk 0:00:30.3]} 41...
Rd5 {[%clk 0:00:29.7]} 42. Rf7 {[%clk 0:00:26.8]} 42... Rd6+ {[%clk 0:00:25.6]}
43. Ka7 {[%clk 0:00:25.8]} 43... Rh6 {[%clk 0:00:22.3]} 44. b6 {[%clk
0:00:25.7]} 44... Rxb6 {[%clk 0:00:22]} 45. Rf8+ {[%clk 0:00:23.1]} 45... Kc7
{[%clk 0:00:19.1]} 46. d8=Q+ {[%clk 0:00:23]} 1-0